bitfinex/quotes_BTCUSD_20250420
["timestamp","ask_amount","ask_price","bid_price","bid_amount"]
[1745176632255,0.00307957,84398.0,84382.0,0.00739088]
[1745176632605,0.00307957,84398.0,84383.0,0.00739088]
[1745176633264,0.00307957,84398.0,84384.0,0.00739088]
[1745176633840,0.00307957,84398.0,84385.0,0.00739088]
[1745176634223,0.00307957,84398.0,84386.0,0.00739088]
[1745176634941,0.00307957,84398.0,84378.0,0.21632791]
[1745176634942,0.00307957,84398.0,84387.0,0.00739088]
[1745176635318,0.00307957,84398.0,84388.0,0.00739088]
[1745176635526,0.00307957,84398.0,84389.0,0.00739088]
[1745176635975,0.00307957,84398.0,84390.0,0.00739088]
[1745176636534,0.00307957,84398.0,84391.0,0.00739088]
[1745176636794,0.00307957,84398.0,84378.0,0.21632791]
[1745176636795,0.00307957,84398.0,84392.0,0.00739088]
[1745176637513,0.00307957,84398.0,84393.0,0.00739088]
[1745176638017,0.00307957,84398.0,84394.0,0.00739088]
[1745176638525,0.00307957,84398.0,84395.0,0.00739088]
[1745176639107,0.00307957,84398.0,84396.0,0.00739088]
[1745176639614,0.00307957,84398.0,84397.0,0.00739088]
[1745176686271,0.00307957,84398.0,84378.0,0.11944791]
[1745176686396,0.00307957,84398.0,84397.0,0.00739087]
[1745176698680,0.00011726,84398.0,84397.0,0.00739087]
[1745176703836,0.00011726,84398.0,84397.0,0.05419087]
[1745176705065,0.00011726,84398.0,84397.0,0.05519087]
[1745176710784,0.00011726,84398.0,84397.0,0.05419087]
[1745176711189,0.00011726,84398.0,84397.0,0.05519087]
[1745176712381,0.00011726,84398.0,84397.0,0.00839087]
[1745176714905,0.00011726,84398.0,84397.0,0.00739087]
[1745176744727,0.00011726,84398.0,84387.0,0.0453]
[1745176744909,0.00011726,84398.0,84388.0,0.11944791]
[1745176746682,0.00011726,84398.0,84389.0,0.34]
[1745176746891,0.00011726,84398.0,84391.0,0.34]
[1745176756961,0.00011726,84398.0,84392.0,0.00738987]
[1745176757970,0.00011726,84398.0,84393.0,0.00738987]
[1745176758316,0.00011726,84398.0,84394.0,0.00738987]
[1745176758965,0.00011726,84398.0,84395.0,0.00738987]
[1745176759540,0.00011726,84398.0,84396.0,0.00738987]
[1745176759973,0.00011726,84398.0,84397.0,0.00738987]
[1745176786104,0.00011726,84398.0,84391.0,0.4118]
[1745176786333,0.00011726,84398.0,84392.0,0.11944791]
[1745176795095,0.00011726,84398.0,84393.0,0.4118]
[1745176795299,0.00011726,84398.0,84394.0,0.11944791]
[1745176798025,0.00011726,84398.0,84395.0,0.00738923]
[1745176798184,0.00011726,84398.0,84396.0,0.11944791]
[1745176798590,0.00011726,84398.0,84397.0,0.00738923]
[1745176798793,0.00011726,84398.0,84397.0,0.12683714]
[1745176808444,0.0008422,84413.0,84397.0,0.12683714]
[1745176808445,0.05968434,84423.0,84397.0,0.12683714]
[1745176808654,4.797e-05,84409.0,84397.0,0.00738923]
[1745176808856,4.797e-05,84409.0,84398.0,0.00738923]
[1745176809278,4.797e-05,84409.0,84399.0,0.00738923]
[1745176809831,4.797e-05,84409.0,84400.0,0.00738923]
[1745176810546,4.797e-05,84409.0,84401.0,0.00738923]
[1745176810964,4.797e-05,84409.0,84402.0,0.00738923]
[1745176811281,4.797e-05,84409.0,84403.0,0.00738923]
[1745176811483,0.0461,84408.0,84403.0,0.00738923]
[1745176811701,0.0461,84408.0,84393.0,0.4118]
[1745176811702,0.0461,84408.0,84404.0,0.00738923]
[1745176812191,0.0461,84408.0,84405.0,0.00738923]
[1745176812605,0.0471,84408.0,84406.0,0.00738923]
[1745176812781,0.0461,84408.0,84406.0,0.00738923]
[1745176812985,0.0471,84408.0,84406.0,0.00738923]
[1745176813163,0.0471,84408.0,84407.0,0.00738923]
[1745176813389,0.0461,84408.0,84407.0,0.00738923]
[1745176813601,0.0471,84408.0,84407.0,0.00738923]
[1745176818133,0.0461,84408.0,84407.0,0.00738923]
[1745176829387,0.0461,84408.0,84393.0,0.24432538]
[1745176829565,0.0461,84408.0,84394.0,0.11944791]
[1745176835218,0.0461,84408.0,84395.0,0.00236945]
[1745176835426,0.0461,84408.0,84395.0,0.12181736]
[1745176838697,0.0461,84408.0,84396.0,0.34]
[1745176841715,0.0461,84408.0,84397.0,0.00738941]
[1745176842413,0.0461,84408.0,84398.0,0.00738941]
[1745176842921,0.0461,84408.0,84399.0,0.00738941]
[1745176843333,4.797e-05,84409.0,84400.0,0.12920667]
[1745176843488,4.797e-05,84409.0,84401.0,0.00236933]
[1745176843691,4.797e-05,84409.0,84403.0,0.34]
[1745176843909,4.797e-05,84409.0,84404.0,0.12181713]
[1745176844093,4.797e-05,84409.0,84404.0,0.12920654]
[1745176844735,4.797e-05,84409.0,84405.0,0.00738941]
[1745176844912,4.797e-05,84409.0,84406.0,0.00236922]
[1745176845723,4.797e-05,84409.0,84407.0,0.00738941]
[1745176845917,4.797e-05,84409.0,84407.0,0.00975862]
[1745176846494,4.797e-05,84409.0,84408.0,0.00738941]
[1745176855895,4.797e-05,84409.0,84408.0,0.12683732]
[1745176856095,4.797e-05,84409.0,84408.0,0.13020654]
[1745176856294,4.797e-05,84409.0,84408.0,0.22720654]
[1745176856501,0.047821,84428.0,84408.0,0.22720654]
[1745176856780,0.047821,84428.0,84410.0,0.19876266]
[1745176856781,0.05083015,84428.0,84410.0,0.19876266]
[1745176856928,0.05083015,84428.0,84411.0,0.11944791]
[1745176857679,0.05083015,84428.0,84412.0,0.00738941]
[1745176857899,0.05083015,84428.0,84413.0,0.12683732]
[1745176858377,0.05083015,84428.0,84414.0,0.00738941]
[1745176858606,0.05083015,84428.0,84414.0,0.12683732]
[1745176859016,0.05083015,84428.0,84415.0,0.00738941]
[1745176859428,0.05083015,84428.0,84416.0,0.00738941]
[1745176859833,0.05083015,84428.0,84417.0,0.00738941]
[1745176860599,0.05083015,84428.0,84418.0,0.00738941]
[1745176861002,0.05083015,84428.0,84419.0,0.00738941]
[1745176861610,0.05083015,84428.0,84420.0,0.00738941]
[1745176862233,0.05083015,84428.0,84421.0,0.00738941]
[1745176862737,0.05083015,84428.0,84422.0,0.00738941]
[1745176863308,0.05083015,84428.0,84423.0,0.00738941]
[1745176864210,0.05083015,84428.0,84424.0,0.00738941]
[1745176864494,0.05083015,84428.0,84425.0,0.00738941]
[1745176865367,0.05083015,84428.0,84426.0,0.00738941]
[1745176866126,0.05083015,84428.0,84427.0,0.00738941]
[1745176866557,0.05183015,84428.0,84427.0,0.00738941]
[1745176867323,0.09486897,84428.0,84427.0,0.00738941]
[1745176867521,0.21727851,84428.0,84427.0,0.00738941]
[1745176872945,0.0939,84416.0,84409.0,0.01731521]
[1745176873165,0.046,84413.0,84381.0,0.09696]
[1745176873399,0.046,84409.0,84381.0,0.09696]
[1745176873611,0.046,84407.0,84386.0,0.0004207]
[1745176873832,0.12241034,84406.0,84386.0,0.0004207]
[1745176874057,0.12241034,84406.0,84386.0,0.01785798]
[1745176879249,0.19876266,84400.0,84386.0,0.01785798]
[1745176879435,0.00296243,84399.0,84386.0,0.01785798]
[1745176880516,0.00296243,84399.0,84386.0,0.01790595]
[1745176881082,0.0467,84398.0,84386.0,0.01790595]
[1745176881446,0.00296262,84397.0,84386.0,0.00046867]
[1745176881656,0.11944791,84396.0,84386.0,0.00046867]
[1745176881855,0.00296277,84395.0,84386.0,0.00046867]
[1745176882031,0.16764791,84394.0,84386.0,0.00046867]
[1745176882237,0.00296277,84393.0,84386.0,0.00046867]
[1745176882434,0.11944791,84392.0,84386.0,0.00046867]
[1745176882648,0.00296277,84391.0,84386.0,0.00046867]
[1745176882867,0.12241068,84391.0,84386.0,0.00046867]
[1745176883064,0.12341068,84391.0,84386.0,0.00046867]
[1745176883585,0.16664791,84390.0,84386.0,0.00046867]
[1745176883759,0.00296277,84389.0,84386.0,0.00046867]
[1745176883967,0.11944791,84388.0,84386.0,0.00046867]
[1745176884153,0.00296277,84387.0,84386.0,0.00046867]
[1745176884353,0.12241068,84387.0,84386.0,0.00046867]
[1745176884703,0.12341068,84387.0,84386.0,0.00046867]
[1745176891092,0.12241068,84387.0,84386.0,0.00046867]
[1745176891318,0.12341068,84387.0,84386.0,0.00046867]
[1745176892082,0.12241068,84387.0,84386.0,0.00046867]
[1745176895041,0.12341068,84387.0,84386.0,0.00046867]
[1745176908044,0.12241068,84387.0,84386.0,0.00046867]
[1745176942396,0.21671068,84387.0,84386.0,0.00046867]
[1745176943685,0.21671068,84387.0,84362.0,0.20753903]
[1745176943937,0.19876266,84380.0,84362.0,0.00011726]
[1745176944143,0.12241068,84379.0,84362.0,0.01669341]
[1745176944347,0.12241068,84379.0,84362.0,0.00011726]
[1745176947553,0.12241068,84379.0,84362.0,0.01619783]
[1745176957497,0.17221068,84379.0,84362.0,0.01619783]
[1745176961039,0.17221068,84379.0,84362.0,0.35619783]
[1745176964492,0.17221068,84379.0,84362.0,0.01619783]
[1745176980958,0.0459,84378.0,84362.0,0.01619783]
[1745176981160,0.12241068,84377.0,84362.0,0.01619783]
[1745176984072,0.00296277,84384.0,84363.0,0.09997056]
[1745176984283,0.0459,84389.0,84364.0,0.0993702]
[1745176984428,0.00296275,84388.0,84365.0,0.16874791]
[1745176985069,0.00296275,84388.0,84366.0,0.34]
[1745176985292,0.00296275,84388.0,84368.0,0.34]
[1745176985496,0.00296275,84388.0,84368.0,0.45944791]
[1745176991083,0.00296275,84388.0,84364.0,0.097]
[1745176991084,0.0495,84386.0,84364.0,0.097]
[1745176991289,0.00296277,84385.0,84364.0,0.097]
[1745176999039,0.00296277,84385.0,84365.0,0.0023704]
[1745176999547,0.00296277,84385.0,84363.0,0.0483]
[1745177003915,0.00296277,84385.0,84364.0,0.0023704]
[1745177006067,0.00296277,84385.0,84363.0,0.0483]
[1745177008249,0.00296277,84385.0,84364.0,0.0023704]
[1745177009865,0.00296277,84385.0,84365.0,0.11944791]
[1745177010063,0.00296277,84385.0,84365.0,0.16534791]
[1745177011911,0.00296277,84385.0,84365.0,0.11944791]
[1745177020080,0.0457,84384.0,84365.0,0.11944791]
[1745177020279,0.097,84403.0,84365.0,0.11944791]
[1745177020280,0.0923,84382.0,84365.0,0.11944791]
[1745177032156,0.0466,84382.0,84365.0,0.11944791]
[1745177032341,0.0456,84381.0,84365.0,0.11944791]
[1745177035465,0.0456,84379.0,84365.0,0.11944791]
[1745177037407,0.0456,84380.0,84360.0,0.24432538]
[1745177037613,0.0456,84378.0,84360.0,0.24432538]
[1745177047465,0.00296277,84377.0,84360.0,0.24432538]
[1745177056359,0.0456,84378.0,84363.0,0.00237039]
[1745177056921,0.00296277,84377.0,84360.0,0.24432538]
[1745177057331,0.0456,84378.0,84363.0,0.00237039]
[1745177057954,0.00296277,84377.0,84360.0,0.24432538]
[1745177060293,0.00296277,84377.0,84363.0,0.0023704]
[1745177061168,0.00296277,84377.0,84360.0,0.24432538]
[1745177070002,0.0456,84378.0,84363.0,0.0023704]
[1745177070210,0.00296277,84377.0,84360.0,0.24432538]
[1745177074548,0.0456,84378.0,84363.0,0.0023704]
[1745177074994,0.00296277,84377.0,84363.0,0.0023704]
[1745177076504,0.0456,84378.0,84363.0,0.0023704]
[1745177078640,0.00296277,84377.0,84363.0,0.0023704]
[1745177079140,0.0456,84378.0,84363.0,0.0023704]
[1745177079953,0.00296277,84377.0,84363.0,0.0023704]
[1745177080341,0.0456,84378.0,84363.0,0.0023704]
[1745177080555,0.0456,84378.0,84364.0,0.00739215]
[1745177080877,0.0456,84378.0,84365.0,0.0023704]
[1745177081031,0.0456,84378.0,84360.0,0.24414116]
[1745177081247,0.0456,84378.0,84361.0,0.11944791]
[1745177081427,0.0456,84378.0,84361.0,0.12004076]
[1745177082994,0.00296301,84377.0,84361.0,0.13408716]
[1745177083913,0.00296301,84377.0,84361.0,0.13349431]
[1745177084599,0.0479,84376.0,84361.0,0.13349431]
[1745177085685,0.0479,84376.0,84362.0,0.00059285]
[1745177085895,0.0479,84381.0,84363.0,0.11944791]
[1745177086093,0.0479,84386.0,84370.0,0.19876266]
[1745177086291,0.0481,84390.0,84376.0,0.19876266]
[1745177086458,0.0481,84390.0,84377.0,0.00059182]
[1745177086654,0.0481,84390.0,84378.0,0.00059182]
[1745177086860,0.0481,84390.0,84370.0,0.19876266]
[1745177086861,0.0481,84390.0,84379.0,0.11944791]
[1745177087057,0.0481,84390.0,84380.0,0.00059164]
[1745177087270,0.0479,84392.0,84381.0,0.11944791]
[1745177087469,0.0479,84392.0,84382.0,0.00059147]
[1745177094507,0.0479,84392.0,84381.0,0.11944791]
[1745177116236,0.0479,84392.0,84375.0,0.09684]
[1745177116444,0.0468,84388.0,84375.0,0.09684]
[1745177116629,0.00296266,84387.0,84375.0,0.09684]
[1745177134332,0.00296266,84387.0,84378.0,0.00010387]
[1745177160521,0.0468,84388.0,84378.0,0.00010387]
[1745177164300,0.0468,84388.0,84372.0,0.00059214]
[1745177166020,0.00296265,84387.0,84372.0,0.00059214]
[1745177166605,0.00296265,84387.0,84371.0,0.0453785]
[1745177166720,0.00296265,84387.0,84371.0,0.16482641]
[1745177167508,0.00296265,84387.0,84371.0,0.11944791]
[1745177169147,0.0468,84388.0,84372.0,0.00059213]
[1745177170670,0.00296265,84387.0,84371.0,0.11944791]
[1745177170978,0.00296265,84387.0,84372.0,0.00059213]
[1745177171459,0.00296265,84387.0,84371.0,0.11944791]
[1745177172260,0.0473,84385.0,84371.0,0.11944791]
[1745177181245,0.0473,84385.0,84372.0,0.00059213]
[1745177182444,0.0473,84385.0,84367.0,0.09684]
[1745177182659,0.0473,84385.0,84367.0,0.21628791]
[1745177195828,0.0473,84385.0,84367.0,0.11944791]
[1745177217327,0.0466,84384.0,84367.0,0.11944791]
[1745177217511,0.049,84383.0,84367.0,0.11944791]
[1745177229782,0.049,84383.0,84365.0,0.09684]
[1745177239399,0.049,84383.0,84364.0,0.10580743]
[1745177239788,0.049,84383.0,84364.0,0.0968]
[1745177244232,0.049,84383.0,84364.0,0.10558394]
[1745177263479,0.049,84383.0,84365.0,0.0968]
[1745177268141,0.049,84383.0,84364.0,0.0968]
[1745177272874,0.049,84383.0,84364.0,0.10582976]
[1745177277757,0.048,84382.0,84364.0,0.10582976]
[1745177277959,0.0498,84381.0,84364.0,0.10582976]
[1745177280844,0.049,84379.0,84364.0,0.0968]
[1745177281070,0.0466,84376.0,84360.0,0.02233859]
[1745177281269,0.0466,84374.0,84360.0,0.02233859]
[1745177281479,0.0466,84372.0,84358.0,0.0968]
[1745177281701,0.049,84370.0,84358.0,0.0968]
[1745177281930,0.049,84370.0,84359.0,0.02822558]
[1745177281931,0.21648753,84369.0,84359.0,0.02822558]
[1745177282149,0.21648753,84369.0,84359.0,0.0004208]
[1745177282577,0.0956,84368.0,84359.0,0.0004208]
[1745177282752,0.00296347,84367.0,84359.0,0.0004208]
[1745177282997,0.0956,84366.0,84359.0,0.0004208]
[1745177283206,0.00296347,84365.0,84359.0,0.0277862]
[1745177283417,0.049,84363.0,84359.0,0.0277862]
[1745177283596,0.05196347,84362.0,84359.0,0.0277862]
[1745177285881,0.0466,84361.0,84359.0,0.0277862]
[1745177286100,0.05196362,84360.0,84359.0,0.0277862]
[1745177286543,0.05296362,84360.0,84359.0,0.0277862]
[1745177291159,0.05196362,84360.0,84359.0,0.0277862]
[1745177292065,0.04589892,84360.0,84359.0,0.0277862]
[1745177296512,0.0466,84361.0,84359.0,0.0277862]
[1745177299089,0.0466,84361.0,84343.0,0.29023753]
[1745177301321,0.0466,84361.0,84343.0,0.31733007]
[1745177313897,0.0466,84361.0,84344.0,0.34]
[1745177315772,0.0466,84360.0,84344.0,0.34]
[1745177326479,0.0466,84360.0,84343.0,0.41417007]
[1745177331688,0.0466,84360.0,84350.0,0.19876266]
[1745177331891,0.0466,84360.0,84343.0,0.53361798]
[1745177335862,0.0466,84360.0,84344.0,0.0968]
[1745177342113,0.0951,84358.0,84344.0,0.0968]
[1745177342313,0.0478,84355.0,84343.0,0.02709254]
[1745177342555,0.0455,84352.0,84335.0,0.0972207]
[1745177342761,0.11944791,84358.0,84335.0,0.0972207]
[1745177342762,0.0455,84350.0,84335.0,0.13124025]
[1745177342961,0.0455,84350.0,84335.0,0.03444025]
[1745177343873,0.0455,84350.0,84335.0,0.03489055]
[1745177363455,0.0455,84350.0,84340.0,0.19876266]
[1745177368536,0.0455,84350.0,84341.0,0.0968]
[1745177377284,0.0459,84357.0,84341.0,0.0968]
[1745177377482,0.0477,84359.0,84347.0,0.19876266]
[1745177387451,0.0459,84362.0,84348.0,0.11944791]
[1745177387647,0.0459,84362.0,84352.0,0.19876266]
[1745177389265,0.0457,84368.0,84352.0,0.19876266]
[1745177389266,0.092,84368.0,84353.0,0.11944791]
[1745177389459,0.092,84368.0,84358.0,0.19876266]
[1745177404886,0.0457,84368.0,84358.0,0.19876266]
[1745177405788,0.0468,84373.0,84359.0,0.11944791]
[1745177406039,0.0465,84376.0,84363.0,0.19876266]
[1745177406247,0.0468,84379.0,84364.0,0.13398876]
[1745177406374,0.0465,84385.0,84365.0,0.0454]
[1745177406581,0.0465,84385.0,84374.0,0.19876266]
[1745177406801,0.0465,84385.0,84375.0,0.34]
[1745177407139,0.0468,84392.0,84375.0,0.34]
[1745177407297,0.00097665,84384.0,84376.0,0.0968]
[1745177407797,0.00097665,84384.0,84377.0,0.11944791]
[1745177408898,0.00097665,84384.0,84376.0,0.09676]
[1745177419149,0.00097665,84384.0,84377.0,0.13398876]
[1745177438681,1e-08,84384.0,84377.0,0.13398876]
[1745177438830,0.0008418,84393.0,84379.0,0.01454085]
[1745177439030,0.0008418,84394.0,84383.0,0.19876266]
[1745177439211,0.0008418,84394.0,84385.0,0.01454085]
[1745177439414,0.0008418,84394.0,84387.0,0.01454085]
[1745177439610,0.0008418,84394.0,84389.0,0.01454085]
[1745177439825,0.0008418,84394.0,84391.0,0.01454085]
[1745177440152,0.0008418,84394.0,84391.0,0.13398876]
[1745177442275,0.0008418,84394.0,84392.0,0.34]
[1745177442607,0.0008418,84394.0,84393.0,0.09672]
[1745177443608,0.0008418,84394.0,84393.0,0.57070876]
[1745177456271,0.0491418,84394.0,84393.0,0.43672]
[1745177460321,0.0961418,84394.0,84393.0,0.43672]
[1745177462457,0.0971418,84394.0,84393.0,0.43672]
[1745177462944,0.0961418,84394.0,84393.0,0.43672]
[1745177464247,0.0971418,84394.0,84393.0,0.34]
[1745177464984,0.0961418,84394.0,84393.0,0.34]
[1745177465417,0.0971418,84394.0,84393.0,0.34]
[1745177468969,0.0961418,84394.0,84393.0,0.34]
[1745177476521,0.0861418,84394.0,84393.0,0.34]
[1745177477295,0.0871418,84394.0,84393.0,0.34]
[1745177487032,0.0861418,84394.0,84393.0,0.34]
[1745177508613,0.047,84394.0,84393.0,0.34]
[1745177509523,0.048,84394.0,84393.0,0.34]
[1745177510156,0.047,84394.0,84393.0,0.34]
[1745177513346,0.047,84394.0,84371.0,0.29023753]
[1745177513347,0.21574791,84394.0,84371.0,0.29023753]
[1745177513556,0.21574791,84394.0,84368.0,0.0496]
[1745177513557,0.11944791,84393.0,84379.0,0.09672]
[1745177513734,0.00296272,84392.0,84379.0,0.09672]
[1745177519465,0.00290553,84392.0,84379.0,0.09672]
[1745177532957,0.0008418,84395.0,84380.0,0.19876266]
[1745177533395,0.0008418,84395.0,84381.0,0.13398876]
[1745177533595,0.0008418,84395.0,84382.0,0.0473]
[1745177535284,0.0008418,84395.0,84382.0,0.34]
[1745177536505,0.0008418,84395.0,84381.0,0.34]
[1745177538461,0.0008418,84395.0,84381.0,0.3852]
[1745177545937,0.0008418,84395.0,84381.0,0.34]
[1745177547333,0.0008418,84395.0,84379.0,0.09672]
[1745177547749,0.0008418,84395.0,84380.0,0.09708]
[1745177551486,0.0008418,84395.0,84381.0,0.34]
[1745177559608,0.0008418,84395.0,84382.0,0.09708]
[1745177564450,0.0008418,84395.0,84383.0,0.09708]
[1745177569336,0.0008418,84395.0,84384.0,0.09708]
[1745177574108,0.0008418,84395.0,84381.0,0.34]
[1745177574109,0.0008418,84395.0,84385.0,0.09708]
[1745177575793,0.00074199,84395.0,84385.0,0.09708]
[1745177578804,0.00074199,84395.0,84386.0,0.09708]
[1745177581007,0.0967,84394.0,84386.0,0.09708]
[1745177583621,0.0967,84394.0,84387.0,0.09708]
[1745177588359,0.0967,84394.0,84375.0,0.29023753]
[1745177588533,0.0967,84394.0,84388.0,0.09708]
[1745177593187,0.0967,84394.0,84389.0,0.09708]
[1745177603153,0.00074199,84395.0,84389.0,0.09708]
[1745177603643,0.0008418,84404.0,84389.0,0.09708]
[1745177603889,0.0008418,84404.0,84390.0,0.19876266]
[1745177604957,0.0008418,84404.0,84390.0,0.20773687]
[1745177605885,0.0008418,84404.0,84391.0,0.00369432]
[1745177606086,0.0498,84409.0,84391.0,0.00369432]
[1745177607011,0.0498,84409.0,84390.0,0.20773687]
[1745177612885,0.00296191,84408.0,84390.0,0.20773687]
[1745177613085,0.046,84407.0,84390.0,0.20773687]
[1745177615963,0.046,84407.0,84390.0,0.00897421]
[1745177616225,0.046,84407.0,84389.0,0.09708]
[1745177616669,0.046,84407.0,84390.0,0.19876266]
[1745177617492,0.046,84407.0,84390.0,0.20768294]
[1745177629355,0.05286192,84406.0,84390.0,0.20768294]
[1745177631541,0.05286192,84406.0,84391.0,0.097]
[1745177632486,0.0499,84406.0,84391.0,0.097]
[1745177636619,0.0499,84406.0,84392.0,0.09744]
[1745177638699,0.0499,84406.0,84393.0,0.09744]
[1745177641698,0.0499,84406.0,84390.0,0.03366741]
[1745177641907,0.0499,84406.0,84394.0,0.09744]
[1745177644692,0.0499,84406.0,84394.0,0.11624317]
[1745177646759,0.0499,84406.0,84395.0,0.09744]
[1745177651424,0.0499,84406.0,84396.0,0.09744]
[1745177652711,0.0459,84405.0,84396.0,0.09744]
[1745177652974,0.0455,84404.0,84396.0,0.09744]
[1745177656251,0.0455,84404.0,84397.0,0.09744]
[1745177660839,0.04548282,84404.0,84397.0,0.09744]
[1745177660994,0.04548282,84404.0,84398.0,0.09744]
[1745177667255,0.04548282,84404.0,84394.0,0.01873048]
[1745177667256,0.0458,84402.0,84394.0,0.01873048]
[1745177667472,0.05046234,84401.0,84394.0,0.01873048]
[1745177667658,0.05046234,84401.0,84385.0,0.0976]
[1745177667659,0.0475,84399.0,84385.0,0.0976]
[1745177667787,0.0475,84396.0,84394.0,0.01881319]
[1745177667991,0.0458,84394.0,84385.0,0.0976]
[1745177669823,0.0458,84394.0,84385.0,0.11707382]
[1745177669941,0.0458,84394.0,84386.0,0.34]
[1745177672260,0.0456,84392.0,84386.0,0.34]
[1745177672464,0.0476,84390.0,84385.0,0.01947382]
[1745177672658,0.0476,84388.0,84382.0,0.0976]
[1745177672903,0.0476,84386.0,84382.0,0.0976]
[1745177673105,0.00296265,84385.0,84382.0,0.0976]
[1745177673427,0.00296265,84385.0,84382.0,0.11674954]
[1745177674026,0.0476,84386.0,84382.0,0.11674954]
[1745177701358,0.0476,84386.0,84382.0,0.11674954]
[1745177715630,0.0454,84391.0,84382.0,0.11674954]
[1745177741004,0.0454,84391.0,84383.0,0.09772]
[1745177745762,0.0454,84391.0,84384.0,0.09772]
[1745177750671,0.0471,84389.0,84384.0,0.09772]
[1745177750900,0.0471,84387.0,84382.0,0.01914954]
[1745177751103,0.21901092,84386.0,84382.0,0.01914954]
[1745177751303,0.0966,84385.0,84374.0,0.00013485]
[1745177751511,0.12241095,84384.0,84382.0,0.01796594]
[1745177751726,0.0495,84383.0,84374.0,0.00013485]
[1745177751933,0.05006304,84382.0,84374.0,0.00013485]
[1745177752810,0.05006304,84382.0,84374.0,0.0179024]
[1745177753014,0.05006304,84382.0,84374.0,0.00013485]
[1745177755406,0.05006304,84382.0,84374.0,0.01824415]
[1745177755606,0.05006304,84382.0,84374.0,0.00013485]
[1745177757896,0.05006304,84382.0,84374.0,0.01820872]
[1745177758253,0.05006304,84382.0,84374.0,0.00013485]
[1745177759137,0.05006304,84382.0,84374.0,0.01743623]
[1745177766748,0.0473,84386.0,84374.0,0.01743623]
[1745177766952,0.0928,84391.0,84374.0,0.01743623]
[1745177767726,0.00296247,84390.0,84374.0,0.01743623]
[1745177768155,0.00296247,84390.0,84375.0,0.09748]
[1745177768364,0.0473,84396.0,84375.0,0.14718]
[1745177771762,0.0473,84396.0,84376.0,0.34]
[1745177777188,0.00296249,84395.0,84376.0,0.34]
[1745177777523,0.0473,84396.0,84376.0,0.34]
[1745177779663,0.0473,84396.0,84380.0,0.19876266]
[1745177780254,0.00296241,84395.0,84380.0,0.19876266]
[1745177780429,0.00296241,84395.0,84375.0,0.14718]
[1745177780640,0.00296241,84395.0,84375.0,0.26662791]
[1745177784076,0.00296241,84395.0,84376.0,0.09748]
[1745177792777,0.00296241,84395.0,84377.0,0.09784]
[1745177802255,0.0958,84394.0,84377.0,0.09784]
[1745177802465,0.00296241,84393.0,84377.0,0.09784]
[1745177812877,0.0958,84394.0,84377.0,0.09784]
[1745177813839,0.00296241,84393.0,84377.0,0.09784]
[1745177814470,0.0465,84392.0,84377.0,0.09784]
[1745177816653,0.0465,84392.0,84378.0,0.09784]
[1745177820666,0.0465,84392.0,84380.0,0.19876266]
[1745177820867,0.0465,84392.0,84378.0,0.09784]
[1745177827915,0.0465,84392.0,84379.0,0.09772]
[1745177832554,0.0465,84392.0,84380.0,0.09772]
[1745177835682,0.0492,84394.0,84380.0,0.09772]
[1745177835895,0.00296242,84393.0,84380.0,0.09772]
[1745177836339,0.0477,84392.0,84380.0,0.09772]
[1745177836535,0.0477,84392.0,84374.0,0.01743623]
[1745177836730,0.0477,84392.0,84381.0,0.09772]
[1745177838937,0.0455,84391.0,84384.0,0.00010377]
[1745177842043,0.0205,84391.0,84384.0,0.00010377]
[1745177846317,0.095,84399.0,84384.0,0.00010377]
[1745177846507,0.095,84389.0,84384.0,0.00010377]
[1745177846687,0.02,84389.0,84384.0,0.00010377]
[1745177849729,0.0477,84388.0,84384.0,0.00010377]
[1745177851828,0.0377,84388.0,84384.0,0.00010377]
[1745177873098,0.02,84389.0,84384.0,0.00010377]
[1745177889409,0.0453,84387.0,84384.0,0.00010377]
[1745177889731,0.00296283,84386.0,84384.0,0.00010377]
[1745177890059,0.00396283,84386.0,84384.0,0.00010377]
[1745177894903,0.00385045,84386.0,84384.0,0.00010377]
[1745177895124,0.00382204,84386.0,84384.0,0.00010377]
[1745177902981,0.00282204,84386.0,84384.0,0.00010377]
[1745177914427,0.00282204,84386.0,84372.0,0.09808]
[1745177914626,0.00286702,84386.0,84372.0,0.09808]
[1745177916553,0.00286702,84386.0,84372.0,0.11277088]
[1745177916765,4.498e-05,84386.0,84372.0,0.11277088]
[1745177917489,4.498e-05,84386.0,84373.0,0.0475]
[1745177932477,4.498e-05,84386.0,84372.0,0.11277088]
[1745177935988,4.498e-05,84386.0,84373.0,0.09808]
[1745177940785,4.498e-05,84386.0,84374.0,0.09808]
[1745177945740,4.498e-05,84386.0,84375.0,0.09796]
[1745177950390,4.498e-05,84386.0,84376.0,0.09796]
[1745177955328,4.498e-05,84386.0,84377.0,0.09796]
[1745177956235,4.498e-05,84386.0,84372.0,0.01480046]
[1745177956236,0.0477,84385.0,84378.0,0.09796]
[1745177959501,0.0462,84384.0,84378.0,0.09796]
[1745177960799,0.0462,84384.0,84379.0,0.09796]
[1745177965298,0.0477,84385.0,84379.0,0.09796]
[1745177965939,0.02447,84385.0,84379.0,0.09796]
[1745177966146,4.498e-05,84386.0,84379.0,0.09796]
[1745177968208,0.04624498,84386.0,84379.0,0.09796]
[1745177969450,0.00582498,84386.0,84379.0,0.09796]
[1745177970381,0.00582498,84386.0,84373.0,0.4118]
[1745177970382,0.00582498,84386.0,84380.0,0.09796]
[1745177983148,0.00582498,84386.0,84381.0,0.09772]
[1745177992608,0.00582498,84386.0,84380.0,0.09772]
[1745177997798,0.00037521,84379.0,84374.0,0.34]
[1745177998033,0.00037521,84379.0,84375.0,0.09772]
[1745177998235,0.00582498,84386.0,84375.0,0.09772]
[1745177998236,1e-08,84386.0,84375.0,0.09772]
[1745178001025,0.0476,84397.0,84376.0,0.00237006]
[1745178001221,0.0476,84397.0,84376.0,0.20113272]
[1745178001404,0.0476,84397.0,84377.0,0.0492]
[1745178001640,0.0476,84397.0,84378.0,0.00236996]
[1745178003766,0.0476,84407.0,84378.0,0.00236996]
[1745178003983,0.12235526,84406.0,84378.0,0.00236996]
[1745178004253,0.0929,84405.0,84378.0,0.00236996]
[1745178004476,0.12235526,84404.0,84378.0,0.00236996]
[1745178006193,0.0454,84403.0,84378.0,0.00236996]
[1745178006392,0.12235526,84402.0,84378.0,0.00236996]
[1745178013215,0.0929,84401.0,84378.0,0.00236996]
[1745178013392,0.12235526,84400.0,84378.0,0.00236996]
[1745178026229,0.12235526,84400.0,84379.0,0.09744]
[1745178026385,0.12235526,84400.0,84380.0,0.00236996]
[1745178026814,0.0929,84401.0,84390.0,0.19876266]
[1745178027019,0.03378533,84401.0,84391.0,0.00236965]